[Event "*** SCC Grand Prix: Titled Tuesday Blitz"]
[Site "Chess.com"]
[Date "2020.07.14"]
[Round "4"]
[White "brunoo2003"]
[Black "Lagmantr"]
[Result "0-1"]
[WhiteElo "2206"]
[BlackElo "2638"]
[TimeControl "180+1"]
[EndTime "10:41:15 PDT"]
[Termination "Lagmantr won on time"]

1. e4 {[%clk 0:03:00.9]} 1... c6 {[%clk 0:03:00.1]} 2. Nf3 {[%clk 0:03:01.2]}
2... d5 {[%clk 0:03:01]} 3. Nc3 {[%clk 0:03:01.7]} 3... dxe4 {[%clk 0:03:01.3]}
4. Nxe4 {[%clk 0:03:02.6]} 4... Nf6 {[%clk 0:03:02.1]} 5. Qe2 {[%clk 0:03:02.7]}
5... Nxe4 {[%clk 0:03:02.2]} 6. Qxe4 {[%clk 0:03:03.6]} 6... Qd5 {[%clk
0:03:02.4]} 7. Qh4 {[%clk 0:03:04.2]} 7... Qe6+ {[%clk 0:03:02.8]} 8. Be2 {[%clk
0:03:04.7]} 8... Qg6 {[%clk 0:03:03.3]} 9. Qg3 {[%clk 0:02:36.1]} 9... Qxc2
{[%clk 0:02:58.4]} 10. O-O {[%clk 0:02:35.7]} 10... Qg6 {[%clk 0:02:57.8]} 11.
Qf4 {[%clk 0:02:34.1]} 11... Qf6 {[%clk 0:02:52.2]} 12. Qc7 {[%clk 0:02:32.2]}
12... Nd7 {[%clk 0:02:31.2]} 13. d4 {[%clk 0:02:31.1]} 13... Nb6 {[%clk
0:02:26.6]} 14. Qg3 {[%clk 0:02:19.5]} 14... Nd5 {[%clk 0:02:18.3]} 15. Bg5
{[%clk 0:02:18.3]} 15... Qd6 {[%clk 0:02:18.3]} 16. Qh4 {[%clk 0:01:40.1]} 16...
h6 {[%clk 0:02:17.9]} 17. Ne5 {[%clk 0:01:32.8]} 17... Bf5 {[%clk 0:02:06.7]}
18. Bc4 {[%clk 0:01:15.9]} 18... g6 {[%clk 0:01:56.9]} 19. Bd2 {[%clk 0:00:57]}
19... Bg7 {[%clk 0:01:53.5]} 20. Rfe1 {[%clk 0:00:56.5]} 20... g5 {[%clk
0:01:48]} 21. Qh5 {[%clk 0:00:56.5]} 21... O-O {[%clk 0:01:46.9]} 22. h4 {[%clk
0:00:50.1]} 22... Bg6 {[%clk 0:01:30.1]} 23. Nxg6 {[%clk 0:00:48]} 23... fxg6
{[%clk 0:01:31]} 24. Qe2 {[%clk 0:00:39]} 24... Bxd4 {[%clk 0:01:25.3]} 25. Qxe7
{[%clk 0:00:31.9]} 25... Qxe7 {[%clk 0:01:20.3]} 26. Rxe7 {[%clk 0:00:32.8]}
26... Rxf2 {[%clk 0:01:20.6]} 27. Bc3 {[%clk 0:00:22.7]} 27... Rf7+ {[%clk
0:01:17]} 28. Bxd4 {[%clk 0:00:22.3]} 28... Rxe7 {[%clk 0:01:17.4]} 29. hxg5
{[%clk 0:00:22.8]} 29... hxg5 {[%clk 0:01:16.7]} 30. Rd1 {[%clk 0:00:21.6]}
30... Rae8 {[%clk 0:01:15.6]} 31. Kf2 {[%clk 0:00:20.1]} 31... b6 {[%clk
0:01:11.8]} 32. Rh1 {[%clk 0:00:19.9]} 32... Rf8+ {[%clk 0:01:04.3]} 33. Kg3
{[%clk 0:00:18.4]} 33... Rh7 {[%clk 0:01:03.8]} 34. Re1 {[%clk 0:00:16.5]} 34...
Rh4 {[%clk 0:01:03]} 35. Rd1 {[%clk 0:00:15.6]} 35... Rff4 {[%clk 0:01:01.2]}
36. Bxd5+ {[%clk 0:00:15.8]} 36... cxd5 {[%clk 0:01:01.3]} 37. Be3 {[%clk
0:00:16.3]} 37... Re4 {[%clk 0:00:58.4]} 38. Kf3 {[%clk 0:00:13.1]} 38... g4+
{[%clk 0:00:43.4]} 39. Kf2 {[%clk 0:00:08.6]} 39... d4 {[%clk 0:00:43.6]} 40.
Bg5 {[%clk 0:00:04.6]} 40... Rh5 {[%clk 0:00:38.9]} 41. Bc1 {[%clk 0:00:05.5]}
41... Rc5 {[%clk 0:00:34.5]} 42. Kg3 {[%clk 0:00:05]} 42... Rc2 {[%clk
0:00:34.8]} 43. Bf4 {[%clk 0:00:04.9]} 43... Rxb2 {[%clk 0:00:33.5]} 44. Kxg4
{[%clk 0:00:04.8]} 44... Rxa2 {[%clk 0:00:30.4]} 45. g3 {[%clk 0:00:04.7]} 45...
Kf7 {[%clk 0:00:24]} 46. Rh1 {[%clk 0:00:03.7]} 46... Re7 {[%clk 0:00:19.2]} 47.
Rh7+ {[%clk 0:00:03.3]} 47... Ke6 {[%clk 0:00:19.4]} 48. Rh6 {[%clk 0:00:03.9]}
48... Kd5 {[%clk 0:00:18.7]} 49. Rxg6 {[%clk 0:00:03.7]} 49... d3 {[%clk
0:00:19.2]} 50. Rd6+ {[%clk 0:00:03.9]} 50... Kc4 {[%clk 0:00:19.7]} 51. Kf5
{[%clk 0:00:04.4]} 51... b5 {[%clk 0:00:16.9]} 52. Kf6 {[%clk 0:00:04.7]} 52...
Ree2 {[%clk 0:00:16.5]} 53. g4 {[%clk 0:00:04.8]} 53... Rf2 {[%clk 0:00:16.7]}
54. Kf5 {[%clk 0:00:04.5]} 54... d2 {[%clk 0:00:16.5]} 55. g5 {[%clk 0:00:04.4]}
55... Ra3 {[%clk 0:00:15.8]} 56. Rxd2 {[%clk 0:00:03.2]} 56... Rxd2 {[%clk
0:00:15.8]} 57. Bxd2 {[%clk 0:00:04.1]} 57... Rg3 {[%clk 0:00:15.7]} 58. Bf4
{[%clk 0:00:04.3]} 58... Rg1 {[%clk 0:00:14.3]} 59. g6 {[%clk 0:00:03.4]} 59...
b4 {[%clk 0:00:14.6]} 60. Bg5 {[%clk 0:00:03.9]} 60... Rf1+ {[%clk 0:00:12.4]}
61. Ke6 {[%clk 0:00:03.3]} 61... Rf8 {[%clk 0:00:12.7]} 62. g7 {[%clk
0:00:02.7]} 62... Rc8 {[%clk 0:00:10.7]} 63. Be7 {[%clk 0:00:02.5]} 63... Rg8
{[%clk 0:00:09.5]} 64. Kf7 {[%clk 0:00:02.3]} 64... Rxg7+ {[%clk 0:00:09.8]} 65.
Kxg7 {[%clk 0:00:03.2]} 65... a5 {[%clk 0:00:09.5]} 66. Kf6 {[%clk 0:00:02.4]}
66... a4 {[%clk 0:00:09.7]} 67. Ke5 {[%clk 0:00:02.9]} 67... a3 {[%clk
0:00:09.7]} 68. Ke4 {[%clk 0:00:03.4]} 68... Kc3 {[%clk 0:00:03.5]} 69. Kd5
{[%clk 0:00:02.2]} 69... a2 {[%clk 0:00:03.7]} 70. Bf6+ {[%clk 0:00:02]} 70...
Kc2 {[%clk 0:00:04.2]} 71. Kc4 {[%clk 0:00:02.9]} 71... b3 {[%clk 0:00:05]} 72.
Kb4 {[%clk 0:00:02.2]} 72... b2 {[%clk 0:00:05.9]} 0-1

[Event "*** SCC Grand Prix: Titled Tuesday Blitz"]
[Site "Chess.com"]
[Date "2020.07.14"]
[Round "4"]
[White "BabyFacedAssasin"]
[Black "LuckSlayeer"]
[Result "1-0"]
[WhiteElo "2237"]
[BlackElo "2394"]
[TimeControl "180+1"]
[EndTime "10:41:20 PDT"]
[Termination "BabyFacedAssasin won by resignation"]

1. e4 {[%clk 0:03:00.9]} 1... c5 {[%clk 0:02:59.8]} 2. Nf3 {[%clk 0:03:00.7]}
2... Nc6 {[%clk 0:03:00.2]} 3. Bb5 {[%clk 0:03:00]} 3... g6 {[%clk 0:03:00.1]}
4. Bxc6 {[%clk 0:02:59.3]} 4... dxc6 {[%clk 0:03:00.3]} 5. d3 {[%clk 0:02:59.1]}
5... Bg7 {[%clk 0:03:00.6]} 6. h3 {[%clk 0:02:59.5]} 6... Nf6 {[%clk 0:02:57.9]}
7. a4 {[%clk 0:02:44.4]} 7... c4 {[%clk 0:02:54.9]} 8. e5 {[%clk 0:02:25.5]}
8... Nd7 {[%clk 0:02:54.6]} 9. d4 {[%clk 0:02:22.5]} 9... c5 {[%clk 0:02:43.3]}
10. c3 {[%clk 0:02:16.1]} 10... cxd4 {[%clk 0:02:43.1]} 11. cxd4 {[%clk
0:02:16.2]} 11... Nb6 {[%clk 0:02:40.8]} 12. Nc3 {[%clk 0:02:15.2]} 12... Bf5
{[%clk 0:02:35.3]} 13. O-O {[%clk 0:02:06.8]} 13... O-O {[%clk 0:02:35]} 14. b3
{[%clk 0:02:06]} 14... Rc8 {[%clk 0:02:23.6]} 15. Bb2 {[%clk 0:01:42.8]} 15...
Nd5 {[%clk 0:02:16.9]} 16. bxc4 {[%clk 0:01:35.2]} 16... Nxc3 {[%clk 0:02:03.9]}
17. Bxc3 {[%clk 0:01:34.9]} 17... Rxc4 {[%clk 0:02:04.8]} 18. Bb2 {[%clk
0:01:27.6]} 18... Qd5 {[%clk 0:01:38.6]} 19. Qb3 {[%clk 0:01:18]} 19... Rd8
{[%clk 0:01:31.6]} 20. Qb5 {[%clk 0:01:07.8]} 20... Bd3 {[%clk 0:00:49.7]} 21.
Rfd1 {[%clk 0:01:00.8]} 21... Be2 {[%clk 0:00:46.8]} 22. Qxd5 {[%clk 0:00:50.2]}
22... Rxd5 {[%clk 0:00:47.7]} 23. Rdc1 {[%clk 0:00:46.8]} 23... Bh6 {[%clk
0:00:12.7]} 24. Rxc4 {[%clk 0:00:39.5]} 24... Bxc4 {[%clk 0:00:13.6]} 25. Bc1
{[%clk 0:00:32.6]} 25... Bf8 {[%clk 0:00:10.3]} 26. Ba3 {[%clk 0:00:27.8]} 26...
Ra5 {[%clk 0:00:08]} 27. Bb4 {[%clk 0:00:25.1]} 27... Ra6 {[%clk 0:00:08.4]} 28.
a5 {[%clk 0:00:23.5]} 28... Bd5 {[%clk 0:00:08.5]} 29. Rc1 {[%clk 0:00:21.6]}
29... Rc6 {[%clk 0:00:06.8]} 30. Rxc6 {[%clk 0:00:20.1]} 30... Bxc6 {[%clk
0:00:07]} 31. Nd2 {[%clk 0:00:17.6]} 31... Kg7 {[%clk 0:00:07.2]} 32. Nb3 {[%clk
0:00:16.2]} 32... b6 {[%clk 0:00:04.3]} 33. axb6 {[%clk 0:00:14.9]} 33... axb6
{[%clk 0:00:05.2]} 34. f4 {[%clk 0:00:14.2]} 34... Bd5 {[%clk 0:00:05]} 35. Nd2
{[%clk 0:00:13.4]} 35... f6 {[%clk 0:00:04.9]} 36. Nf1 {[%clk 0:00:12.7]} 36...
Kf7 {[%clk 0:00:04.1]} 37. Ne3 {[%clk 0:00:12.6]} 37... e6 {[%clk 0:00:02.5]}
38. Bxf8 {[%clk 0:00:11.6]} 38... Kxf8 {[%clk 0:00:03]} 39. Kf2 {[%clk
0:00:10.9]} 39... fxe5 {[%clk 0:00:02.8]} 40. dxe5 {[%clk 0:00:07.9]} 40... Bb3
{[%clk 0:00:03]} 41. g4 {[%clk 0:00:07.7]} 41... Ke7 {[%clk 0:00:02.8]} 42. Ke2
{[%clk 0:00:07.7]} 42... b5 {[%clk 0:00:03.4]} 43. Kd2 {[%clk 0:00:07.8]} 43...
Kd7 {[%clk 0:00:03.9]} 44. Kc3 {[%clk 0:00:08.2]} 44... Ba2 {[%clk 0:00:03.2]}
45. Kb4 {[%clk 0:00:08.5]} 45... Kc6 {[%clk 0:00:03.7]} 46. Nc2 {[%clk 0:00:08]}
46... Bb1 {[%clk 0:00:03.7]} 47. Nd4+ {[%clk 0:00:08.3]} 47... Kd7 {[%clk
0:00:04.2]} 48. Kxb5 {[%clk 0:00:08.2]} 48... Be4 {[%clk 0:00:04.3]} 49. Kc5
{[%clk 0:00:08.5]} 49... Bg2 {[%clk 0:00:04.3]} 50. h4 {[%clk 0:00:08.6]} 50...
Bh3 {[%clk 0:00:04.8]} 51. g5 {[%clk 0:00:09.1]} 51... Bg2 {[%clk 0:00:04.6]}
52. Nb5 {[%clk 0:00:09.5]} 52... Bd5 {[%clk 0:00:04.5]} 53. Nd6 {[%clk
0:00:10.1]} 53... Bf3 {[%clk 0:00:04.5]} 54. Nf7 {[%clk 0:00:10.4]} 54... Ke7
{[%clk 0:00:04.5]} 55. Nh6 {[%clk 0:00:08.3]} 55... Be2 {[%clk 0:00:04.2]} 56.
Kc6 {[%clk 0:00:08.1]} 56... Bd3 {[%clk 0:00:03.5]} 57. Ng4 {[%clk 0:00:07.7]}
57... Be2 {[%clk 0:00:03.9]} 58. Nf6 {[%clk 0:00:08]} 58... Kf7 {[%clk
0:00:03.6]} 59. Nxh7 {[%clk 0:00:08.2]} 59... Bd3 {[%clk 0:00:04.1]} 60. Nf6
{[%clk 0:00:08.4]} 60... Be2 {[%clk 0:00:04.7]} 61. Kd6 {[%clk 0:00:08.2]} 61...
Bd1 {[%clk 0:00:04.8]} 62. Nd7 {[%clk 0:00:08.3]} 62... Be2 {[%clk 0:00:04.5]}
63. Nc5 {[%clk 0:00:08.6]} 63... Bg4 {[%clk 0:00:04.8]} 64. Nb7 {[%clk
0:00:08.9]} 64... Bh3 {[%clk 0:00:05.1]} 65. Nd8+ {[%clk 0:00:09.2]} 65... Kg7
{[%clk 0:00:03.2]} 66. Nxe6+ {[%clk 0:00:09.8]} 66... Kf7 {[%clk 0:00:04.1]} 67.
Nd4 {[%clk 0:00:09.9]} 67... Bg4 {[%clk 0:00:04.1]} 68. e6+ {[%clk 0:00:10.2]}
68... Ke8 {[%clk 0:00:04.1]} 69. e7 {[%clk 0:00:10.7]} 69... Kf7 {[%clk
0:00:04.8]} 70. Nc6 {[%clk 0:00:10.3]} 70... Bh3 {[%clk 0:00:05.2]} 71. Ne5+
{[%clk 0:00:10.5]} 71... Ke8 {[%clk 0:00:05.4]} 72. Nxg6 {[%clk 0:00:10.9]}
72... Bf5 {[%clk 0:00:06]} 73. Ne5 {[%clk 0:00:10.8]} 73... Be6 {[%clk 0:00:06]}
74. Nd3 {[%clk 0:00:10]} 74... Bg8 {[%clk 0:00:05.9]} 75. h5 {[%clk 0:00:10.1]}
75... Bf7 {[%clk 0:00:05.7]} 76. g6 {[%clk 0:00:10]} 76... Bxg6 {[%clk
0:00:05.7]} 77. Ne5 {[%clk 0:00:06.9]} 77... Bxh5 {[%clk 0:00:05.8]} 78. f5
{[%clk 0:00:05.1]} 78... Bf7 {[%clk 0:00:05.3]} 79. f6 {[%clk 0:00:04.6]} 79...
Bh5 {[%clk 0:00:05.4]} 80. Nc6 {[%clk 0:00:02.8]} 80... Bg4 {[%clk 0:00:04]} 81.
Nb4 {[%clk 0:00:03]} 81... Be6 {[%clk 0:00:04.1]} 82. Na6 {[%clk 0:00:02.8]}
82... Kf7 {[%clk 0:00:04.2]} 83. Nc7 {[%clk 0:00:02.8]} 83... Bd7 {[%clk
0:00:04.6]} 84. Kxd7 {[%clk 0:00:02.7]} 84... Kxf6 {[%clk 0:00:05]} 85. e8=Q
{[%clk 0:00:03.6]} 1-0

[Event "*** SCC Grand Prix: Titled Tuesday Blitz"]
[Site "Chess.com"]
[Date "2020.07.14"]
[Round "4"]
[White "White_Ghost"]
[Black "124chess"]
[Result "1/2-1/2"]
[WhiteElo "2490"]
[BlackElo "2682"]
[TimeControl "180+1"]
[EndTime "10:41:21 PDT"]
[Termination "Game drawn by agreement"]

1. d4 {[%clk 0:03:00.9]} 1... Nf6 {[%clk 0:02:59.7]} 2. c4 {[%clk 0:03:00.8]}
2... e6 {[%clk 0:03:00.2]} 3. Nf3 {[%clk 0:03:00.8]} 3... d5 {[%clk 0:03:00.3]}
4. g3 {[%clk 0:03:01]} 4... a6 {[%clk 0:02:59.6]} 5. cxd5 {[%clk 0:02:56]} 5...
exd5 {[%clk 0:02:59.2]} 6. Bg2 {[%clk 0:02:56.9]} 6... Bd6 {[%clk 0:02:56.9]} 7.
O-O {[%clk 0:02:57.8]} 7... O-O {[%clk 0:02:56]} 8. Nc3 {[%clk 0:02:58.7]} 8...
c6 {[%clk 0:02:56.5]} 9. Ne5 {[%clk 0:02:49.6]} 9... Nbd7 {[%clk 0:02:55.3]} 10.
f4 {[%clk 0:02:49.6]} 10... Re8 {[%clk 0:02:53.5]} 11. h3 {[%clk 0:02:40.5]}
11... Nf8 {[%clk 0:02:37.6]} 12. Qd3 {[%clk 0:02:30.2]} 12... Ng6 {[%clk
0:02:27]} 13. e3 {[%clk 0:02:28.8]} 13... Nd7 {[%clk 0:01:44.9]} 14. Bd2 {[%clk
0:02:16.2]} 14... Ndf8 {[%clk 0:01:41.8]} 15. Rae1 {[%clk 0:02:10.6]} 15... f6
{[%clk 0:01:41.8]} 16. Nf3 {[%clk 0:01:55.3]} 16... Ne7 {[%clk 0:01:26.7]} 17.
g4 {[%clk 0:01:24.6]} 17... a5 {[%clk 0:01:20.3]} 18. e4 {[%clk 0:01:04.3]}
18... dxe4 {[%clk 0:01:20.3]} 19. Nxe4 {[%clk 0:01:05.2]} 19... Bc7 {[%clk
0:01:20.9]} 20. f5 {[%clk 0:00:41.2]} 20... Nd5 {[%clk 0:01:19.2]} 21. Nc5
{[%clk 0:00:41.1]} 21... b6 {[%clk 0:01:07.3]} 22. Rxe8 {[%clk 0:00:36.9]} 22...
Qxe8 {[%clk 0:01:06.5]} 23. Re1 {[%clk 0:00:37.5]} 23... Qf7 {[%clk 0:01:01.2]}
24. Ne4 {[%clk 0:00:35.6]} 24... Nb4 {[%clk 0:00:55.5]} 25. Qc3 {[%clk
0:00:19.7]} 25... Bb7 {[%clk 0:00:49.4]} 26. a3 {[%clk 0:00:06.8]} 26... Nd5
{[%clk 0:00:47]} 27. Qc4 {[%clk 0:00:06.8]} 27... h6 {[%clk 0:00:36.7]} 28. h4
{[%clk 0:00:03.2]} 28... Re8 {[%clk 0:00:33.1]} 29. g5 {[%clk 0:00:02.8]} 29...
fxg5 {[%clk 0:00:32.9]} 30. hxg5 {[%clk 0:00:03.7]} 30... Bc8 {[%clk 0:00:09.4]}
31. gxh6 {[%clk 0:00:03.5]} 31... Bxf5 {[%clk 0:00:08.9]} 32. hxg7 {[%clk
0:00:02.9]} 32... Qxg7 {[%clk 0:00:09.3]} 33. Qxc6 {[%clk 0:00:02.8]} 33... Nf6
{[%clk 0:00:04.6]} 34. Qc4+ {[%clk 0:00:03]} 34... Be6 {[%clk 0:00:04.3]} 35.
Qd3 {[%clk 0:00:02.8]} 35... Nxe4 {[%clk 0:00:03.1]} 36. Qxe4 {[%clk 0:00:03.7]}
36... Bf7 {[%clk 0:00:03.6]} 37. Ne5 {[%clk 0:00:03.2]} 37... Bxe5 {[%clk
0:00:03.2]} 38. dxe5 {[%clk 0:00:04.1]} 38... Bg6 {[%clk 0:00:03.8]} 39. Qc4+
{[%clk 0:00:03.8]} 39... Ne6 {[%clk 0:00:04.3]} 40. Qe2 {[%clk 0:00:03.5]} 40...
Bf5 {[%clk 0:00:04.4]} 41. Bc3 {[%clk 0:00:03.7]} 41... Bh3 {[%clk 0:00:04.3]}
42. Qf3 {[%clk 0:00:03.8]} 42... Bxg2 {[%clk 0:00:04.7]} 43. Qxg2 {[%clk
0:00:04.7]} 43... Qxg2+ {[%clk 0:00:05.4]} 44. Kxg2 {[%clk 0:00:05.6]} 44... Kf7
{[%clk 0:00:06.3]} 45. Kf3 {[%clk 0:00:06.1]} 45... Ke7 {[%clk 0:00:06.7]} 46.
Ke4 {[%clk 0:00:06.6]} 46... Rg8 {[%clk 0:00:07]} 47. Rh1 {[%clk 0:00:07.1]}
47... Rg4+ {[%clk 0:00:07.4]} 48. Kd3 {[%clk 0:00:07.5]} 48... Rg3+ {[%clk
0:00:07.5]} 49. Kc2 {[%clk 0:00:08.1]} 49... Kd7 {[%clk 0:00:07.9]} 50. Rh6
{[%clk 0:00:07.7]} 50... Rg4 {[%clk 0:00:07]} 51. Kb3 {[%clk 0:00:07.8]} 51...
a4+ {[%clk 0:00:07.3]} 52. Kc2 {[%clk 0:00:07.4]} 52... b5 {[%clk 0:00:07.8]}
53. Kd3 {[%clk 0:00:07.8]} 53... Nc5+ {[%clk 0:00:06.9]} 54. Kc2 {[%clk
0:00:07.3]} 54... Ne6 {[%clk 0:00:07.3]} 55. Rh7+ {[%clk 0:00:07]} 55... Kc6
{[%clk 0:00:07.4]} 56. Re7 {[%clk 0:00:07.3]} 56... Kd5 {[%clk 0:00:07.6]} 57.
Rd7+ {[%clk 0:00:06.7]} 57... Kc4 {[%clk 0:00:08]} 58. Rc7+ {[%clk 0:00:06.2]}
58... Kd5 {[%clk 0:00:07]} 59. Rd7+ {[%clk 0:00:05.9]} 59... Ke4 {[%clk
0:00:07.2]} 60. Rd2 {[%clk 0:00:05.6]} 60... Kf5 {[%clk 0:00:05.5]} 61. Rf2+
{[%clk 0:00:05.2]} 61... Ke4 {[%clk 0:00:02.8]} 62. Kd2 {[%clk 0:00:04.3]} 62...
Rg3 {[%clk 0:00:02.7]} 63. Re2+ {[%clk 0:00:04.4]} 63... Kd5 {[%clk 0:00:03.1]}
64. Kc2 {[%clk 0:00:04.7]} 64... Nc5 {[%clk 0:00:03.5]} 65. Rd2+ {[%clk
0:00:04.8]} 65... Ke6 {[%clk 0:00:03.2]} 66. Rd6+ {[%clk 0:00:03.6]} 66... Kf5
{[%clk 0:00:03.7]} 67. Rf6+ {[%clk 0:00:03.3]} 67... Kg5 {[%clk 0:00:04.4]} 68.
e6 {[%clk 0:00:03.8]} 68... Rxc3+ {[%clk 0:00:04.4]} 69. Kxc3 {[%clk 0:00:03.3]}
69... Kxf6 {[%clk 0:00:05.3]} 70. Kb4 {[%clk 0:00:03.7]} 70... Nd3+ {[%clk
0:00:04.9]} 71. Kc3 {[%clk 0:00:02.2]} 71... Ne5 {[%clk 0:00:04.5]} 72. Kb4
{[%clk 0:00:02.5]} 72... Nc4 {[%clk 0:00:03.9]} 73. Kxb5 {[%clk 0:00:02.4]}
73... Nxb2 {[%clk 0:00:04.2]} 74. Kb4 {[%clk 0:00:02.9]} 74... Kxe6 {[%clk
0:00:04]} 75. Kc3 {[%clk 0:00:03.3]} 75... Nd1+ {[%clk 0:00:04]} 76. Kb4 {[%clk
0:00:03.8]} 76... Nb2 {[%clk 0:00:04]} 77. Kc3 {[%clk 0:00:04.2]} 1/2-1/2

[Event "*** SCC Grand Prix: Titled Tuesday Blitz"]
[Site "Chess.com"]
[Date "2020.07.14"]
[Round "4"]
[White "Paladin61"]
[Black "vova-79"]
[Result "1-0"]
[WhiteElo "2658"]
[BlackElo "2466"]
[TimeControl "180+1"]
[EndTime "10:41:22 PDT"]
[Termination "Paladin61 won on time"]

1. b3 {[%clk 0:02:59.3]} 1... d5 {[%clk 0:02:57.8]} 2. Bb2 {[%clk 0:02:59.5]}
2... Bf5 {[%clk 0:02:54.2]} 3. Nf3 {[%clk 0:02:59.4]} 3... e6 {[%clk 0:02:53.3]}
4. g3 {[%clk 0:02:59.7]} 4... c6 {[%clk 0:02:52.1]} 5. Bg2 {[%clk 0:03:00.1]}
5... h6 {[%clk 0:02:51.8]} 6. O-O {[%clk 0:03:00.1]} 6... Nd7 {[%clk 0:02:51.9]}
7. d3 {[%clk 0:02:59.7]} 7... Ngf6 {[%clk 0:02:50.2]} 8. Nbd2 {[%clk 0:02:59.6]}
8... Bh7 {[%clk 0:02:49.9]} 9. c4 {[%clk 0:02:55.8]} 9... Bc5 {[%clk 0:02:48.6]}
10. a3 {[%clk 0:02:50.7]} 10... a5 {[%clk 0:02:47.6]} 11. Qc2 {[%clk 0:02:29]}
11... O-O {[%clk 0:02:45.7]} 12. Bc3 {[%clk 0:02:27.6]} 12... Qe7 {[%clk
0:02:38.7]} 13. Qb2 {[%clk 0:02:24.9]} 13... Rfe8 {[%clk 0:02:38.9]} 14. Ne5
{[%clk 0:02:13.6]} 14... Nxe5 {[%clk 0:02:27.5]} 15. Bxe5 {[%clk 0:02:12.4]}
15... Bd6 {[%clk 0:02:21.4]} 16. Nf3 {[%clk 0:02:11.3]} 16... Bxe5 {[%clk
0:02:20.1]} 17. Nxe5 {[%clk 0:02:11.2]} 17... Nd7 {[%clk 0:02:19.2]} 18. Nxd7
{[%clk 0:01:48.8]} 18... Qxd7 {[%clk 0:02:17.3]} 19. Rfc1 {[%clk 0:01:39.7]}
19... d4 {[%clk 0:02:15.9]} 20. b4 {[%clk 0:01:39]} 20... axb4 {[%clk
0:02:12.5]} 21. axb4 {[%clk 0:01:32.4]} 21... e5 {[%clk 0:02:12]} 22. Rxa8
{[%clk 0:01:24.9]} 22... Rxa8 {[%clk 0:02:10.7]} 23. Ra1 {[%clk 0:01:25.8]}
23... Qe8 {[%clk 0:02:06.1]} 24. Ra5 {[%clk 0:01:16]} 24... Bg6 {[%clk
0:01:33.2]} 25. f3 {[%clk 0:01:06.3]} 25... f6 {[%clk 0:01:25]} 26. Bh3 {[%clk
0:01:04]} 26... Qd8 {[%clk 0:01:22]} 27. Qa3 {[%clk 0:00:55.7]} 27... Rb8 {[%clk
0:01:09.7]} 28. Ra7 {[%clk 0:00:54]} 28... Qc7 {[%clk 0:01:00.5]} 29. Qa5 {[%clk
0:00:36]} 29... Qxa5 {[%clk 0:00:59.8]} 30. bxa5 {[%clk 0:00:36]} 30... f5
{[%clk 0:00:59.3]} 31. Kf2 {[%clk 0:00:20.8]} 31... e4 {[%clk 0:00:54]} 32. Ke1
{[%clk 0:00:16.7]} 32... Kf8 {[%clk 0:00:49.8]} 33. fxe4 {[%clk 0:00:15.6]}
33... fxe4 {[%clk 0:00:48.7]} 34. Kd2 {[%clk 0:00:13.6]} 34... Kg8 {[%clk
0:00:30.4]} 35. Be6+ {[%clk 0:00:06.8]} 35... Kf8 {[%clk 0:00:29.7]} 36. Bg4
{[%clk 0:00:05.2]} 36... Kg8 {[%clk 0:00:28.9]} 37. h4 {[%clk 0:00:04.7]} 37...
exd3 {[%clk 0:00:26.6]} 38. exd3 {[%clk 0:00:04.8]} 38... Kf8 {[%clk 0:00:26.7]}
39. h5 {[%clk 0:00:05]} 39... Be8 {[%clk 0:00:25.8]} 40. Bf3 {[%clk 0:00:05.2]}
40... Ke7 {[%clk 0:00:19]} 41. a6 {[%clk 0:00:05.2]} 41... Kd6 {[%clk
0:00:16.1]} 42. axb7 {[%clk 0:00:04.9]} 42... Kc7 {[%clk 0:00:16.1]} 43. Ra5
{[%clk 0:00:04.1]} 43... Rxb7 {[%clk 0:00:15.2]} 44. Re5 {[%clk 0:00:04.5]}
44... Kd8 {[%clk 0:00:13.4]} 45. c5 {[%clk 0:00:04.1]} 45... Re7 {[%clk
0:00:10.6]} 46. Rf5 {[%clk 0:00:03]} 46... Rf7 {[%clk 0:00:10.5]} 47. Rxf7
{[%clk 0:00:02.4]} 47... Bxf7 {[%clk 0:00:10.7]} 48. g4 {[%clk 0:00:02.2]} 48...
Kd7 {[%clk 0:00:10.2]} 49. Ke2 {[%clk 0:00:02.5]} 49... Bb3 {[%clk 0:00:09.6]}
50. Be4 {[%clk 0:00:02.4]} 50... Bc2 {[%clk 0:00:07.8]} 51. Kf3 {[%clk
0:00:02.5]} 51... Bd1+ {[%clk 0:00:07.5]} 52. Kf4 {[%clk 0:00:02.7]} 52... Kc7
{[%clk 0:00:05.8]} 53. Bf5 {[%clk 0:00:02.3]} 53... Kd8 {[%clk 0:00:01.5]} 54.
Ke5 {[%clk 0:00:03.1]} 54... Ke7 {[%clk 0:00:01.2]} 55. Kxd4 {[%clk 0:00:03]}
55... Kf6 {[%clk 0:00:01.3]} 56. Ke3 {[%clk 0:00:02.8]} 56... Kg5 {[%clk
0:00:01.3]} 57. Bd7 {[%clk 0:00:02.3]} 57... Bxg4 {[%clk 0:00:01.4]} 58. Bxc6
{[%clk 0:00:02.6]} 58... Bxh5 {[%clk 0:00:01.8]} 59. d4 {[%clk 0:00:03.1]} 59...
Kf6 {[%clk 0:00:01.5]} 60. Be4 {[%clk 0:00:03.3]} 60... g5 {[%clk 0:00:01.3]}
61. d5 {[%clk 0:00:03.5]} 61... Ke5 {[%clk 0:00:01.1]} 62. d6 {[%clk 0:00:03.4]}
62... Be8 {[%clk 0:00:01.1]} 63. Bb7 {[%clk 0:00:01.8]} 1-0